[Event "*** Titled Tuesday Blitz"]
[Site "Chess.com"]
[Date "2018.04.03"]
[Round "4"]
[White "SL0M"]
[Black "aa175"]
[Result "0-1"]
[WhiteElo "1691"]
[BlackElo "1948"]
[TimeControl "180+2"]
[EndTime "13:51:58 PDT"]
[Termination "aa175 won by resignation"]

1. Nf3 {[%clk 0:03:01.9]} 1... d5 {[%clk 0:02:57.1]} 2. d4 {[%clk 0:03:01]} 2...
Nf6 {[%clk 0:02:57.1]} 3. c4 {[%clk 0:03:02.3]} 3... e6 {[%clk 0:02:56.4]} 4. g3
{[%clk 0:03:02.5]} 4... c6 {[%clk 0:02:57.7]} 5. b3 {[%clk 0:02:56.5]} 5... Bb4+
{[%clk 0:02:55.7]} 6. Bd2 {[%clk 0:02:58]} 6... Bxd2+ {[%clk 0:02:56.4]} 7.
Nbxd2 {[%clk 0:02:59.9]} 7... O-O {[%clk 0:02:57.3]} 8. Bg2 {[%clk 0:03:00]}
8... Nbd7 {[%clk 0:02:58.4]} 9. O-O {[%clk 0:03:00.7]} 9... b6 {[%clk 0:02:56]}
10. Qc2 {[%clk 0:02:58.8]} 10... Bb7 {[%clk 0:02:56.4]} 11. e4 {[%clk
0:02:58.8]} 11... Nxe4 {[%clk 0:02:49.5]} 12. Nxe4 {[%clk 0:03:00.7]} 12... dxe4
{[%clk 0:02:51.4]} 13. Qxe4 {[%clk 0:03:01]} 13... Nf6 {[%clk 0:02:53.3]} 14.
Qe2 {[%clk 0:03:02.2]} 14... Qe7 {[%clk 0:02:50.4]} 15. Ne5 {[%clk 0:03:00.3]}
15... c5 {[%clk 0:02:49.5]} 16. Bxb7 {[%clk 0:02:58.7]} 16... Qxb7 {[%clk
0:02:51.4]} 17. dxc5 {[%clk 0:02:59.3]} 17... bxc5 {[%clk 0:02:53.3]} 18. f3
{[%clk 0:02:51.9]} 18... Rad8 {[%clk 0:02:30.3]} 19. Rfd1 {[%clk 0:02:51.7]}
19... Nd7 {[%clk 0:02:28.9]} 20. Nxd7 {[%clk 0:02:35]} 20... Rxd7 {[%clk
0:02:30.8]} 21. Rxd7 {[%clk 0:02:35.3]} 21... Qxd7 {[%clk 0:02:32.7]} 22. Rd1
{[%clk 0:02:35.7]} 22... Qe7 {[%clk 0:02:32.2]} 23. Qe3 {[%clk 0:02:32.1]} 23...
g6 {[%clk 0:02:27.9]} 24. Kg2 {[%clk 0:02:23.6]} 24... a5 {[%clk 0:02:12.1]} 25.
Qd2 {[%clk 0:02:17.9]} 25... a4 {[%clk 0:01:55.4]} 26. Qd6 {[%clk 0:02:15]}
26... Qxd6 {[%clk 0:01:50.4]} 27. Rxd6 {[%clk 0:02:16.9]} 27... axb3 {[%clk
0:01:52.1]} 28. axb3 {[%clk 0:02:17]} 28... Rb8 {[%clk 0:01:53.7]} 29. Rc6
{[%clk 0:02:15.3]} 29... Rxb3 {[%clk 0:01:53.2]} 30. Rxc5 {[%clk 0:02:16.8]}
30... Rb2+ {[%clk 0:01:55.1]} 31. Kh3 {[%clk 0:02:01]} 31... Kg7 {[%clk
0:01:51.4]} 32. Ra5 {[%clk 0:01:52]} 32... h5 {[%clk 0:01:27.3]} 33. Rc5 {[%clk
0:01:49.7]} 33... Kf6 {[%clk 0:01:23]} 34. Rc8 {[%clk 0:01:44.9]} 34... Rc2
{[%clk 0:01:22.1]} 35. c5 {[%clk 0:01:45.3]} 35... Rc4 {[%clk 0:01:08.5]} 36. c6
{[%clk 0:01:45.3]} 36... Rc5 {[%clk 0:01:06.8]} 37. c7 {[%clk 0:01:44.9]} 37...
Rc4 {[%clk 0:01:03.6]} 38. Kg2 {[%clk 0:01:40.5]} 38... e5 {[%clk 0:00:58.4]}
39. h4 {[%clk 0:01:37.6]} 39... Rc2+ {[%clk 0:00:47.2]} 40. Kg1 {[%clk 0:01:30]}
40... Kf5 {[%clk 0:00:36.6]} 41. Kf1 {[%clk 0:01:23.7]} 41... e4 {[%clk
0:00:15.6]} 42. fxe4+ {[%clk 0:01:25.6]} 42... Kg4 {[%clk 0:00:17]} 43. Ke1
{[%clk 0:01:13.3]} 43... Kxg3 {[%clk 0:00:17.8]} 44. Kd1 {[%clk 0:01:15.2]}
44... Rc6 {[%clk 0:00:18.3]} 45. Kd2 {[%clk 0:01:11.1]} 45... Kxh4 {[%clk
0:00:19.2]} 46. Ke3 {[%clk 0:01:11.9]} 46... Kg5 {[%clk 0:00:20.1]} 47. Kd4
{[%clk 0:01:08.3]} 47... Rc1 {[%clk 0:00:18.9]} 48. Kd5 {[%clk 0:01:10.2]} 48...
Kf4 {[%clk 0:00:14.8]} 49. Kd4 {[%clk 0:01:09.9]} 49... h4 {[%clk 0:00:11.9]}
50. Rh8 {[%clk 0:01:10.4]} 50... Rxc7 {[%clk 0:00:10.1]} 51. Rxh4+ {[%clk
0:01:12]} 51... Kg5 {[%clk 0:00:11.5]} 52. Rh7 {[%clk 0:01:13.8]} 52... Rd7+
{[%clk 0:00:11]} 53. Ke3 {[%clk 0:01:13.9]} 53... Re7 {[%clk 0:00:09.7]} 54. Kf3
{[%clk 0:01:12.9]} 54... Kf6 {[%clk 0:00:10.6]} 55. Rh8 {[%clk 0:01:08.1]} 55...
Ra7 {[%clk 0:00:08.9]} 56. Ra8 {[%clk 0:01:10]} 56... Rxa8 {[%clk 0:00:08]} 57.
Kf4 {[%clk 0:01:10.2]} 57... Ke6 {[%clk 0:00:09.9]} 58. e5 {[%clk 0:01:10.8]}
58... Rh8 {[%clk 0:00:11.8]} 59. Kg5 {[%clk 0:01:11.8]} 59... Rh1 {[%clk
0:00:13.7]} 60. Kg4 {[%clk 0:01:11.7]} 60... Re1 {[%clk 0:00:15.6]} 61. Kg5
{[%clk 0:01:13.3]} 61... Rxe5+ {[%clk 0:00:17.5]} 62. Kh6 {[%clk 0:01:13.8]}
62... Rf5 {[%clk 0:00:19.4]} 63. Kg7 {[%clk 0:01:15.6]} 63... g5 {[%clk
0:00:19.7]} 64. Kh6 {[%clk 0:01:17.5]} 64... g4 {[%clk 0:00:21.6]} 65. Kg7
{[%clk 0:01:16.2]} 65... g3 {[%clk 0:00:23.5]} 66. Kf8 {[%clk 0:01:17.1]} 66...
g2 {[%clk 0:00:25.4]} 67. Ke8 {[%clk 0:01:18.3]} 67... g1=Q {[%clk 0:00:26.3]}
68. Kd8 {[%clk 0:01:19.2]} 68... Qc5 {[%clk 0:00:26.2]} 0-1

[Event "*** Titled Tuesday Blitz"]
[Site "Chess.com"]
[Date "2018.04.03"]
[Round "4"]
[White "schoolmeester"]
[Black "Man-Chuk"]
[Result "1-0"]
[WhiteElo "2654"]
[BlackElo "2657"]
[TimeControl "180+2"]
[EndTime "13:52:03 PDT"]
[Termination "schoolmeester won by resignation"]

1. e4 {[%clk 0:03:01.9]} 1... c5 {[%clk 0:02:59.3]} 2. Nf3 {[%clk 0:03:01.7]}
2... e6 {[%clk 0:02:59.6]} 3. d4 {[%clk 0:03:01.9]} 3... cxd4 {[%clk 0:03:00.8]}
4. Nxd4 {[%clk 0:03:02.8]} 4... Nc6 {[%clk 0:03:02.5]} 5. Nc3 {[%clk 0:03:03.2]}
5... Qc7 {[%clk 0:03:03.6]} 6. Ndb5 {[%clk 0:03:00.7]} 6... Qb8 {[%clk
0:03:04.5]} 7. Be3 {[%clk 0:03:01]} 7... a6 {[%clk 0:03:05.8]} 8. Bb6 {[%clk
0:03:01.5]} 8... axb5 {[%clk 0:03:06.3]} 9. Nxb5 {[%clk 0:03:02.5]} 9... Bb4+
{[%clk 0:03:07.8]} 10. c3 {[%clk 0:03:03.3]} 10... Ba5 {[%clk 0:03:09]} 11. Nc7+
{[%clk 0:03:04.1]} 11... Qxc7 {[%clk 0:03:10.2]} 12. Bxc7 {[%clk 0:03:05.3]}
12... Bxc7 {[%clk 0:03:12.1]} 13. g3 {[%clk 0:03:06.6]} 13... Nf6 {[%clk
0:03:08]} 14. Bg2 {[%clk 0:03:07.5]} 14... O-O {[%clk 0:03:08.8]} 15. O-O {[%clk
0:03:08.7]} 15... d5 {[%clk 0:02:56.3]} 16. exd5 {[%clk 0:03:07.5]} 16... exd5
{[%clk 0:02:58.2]} 17. Re1 {[%clk 0:02:54.4]} 17... Bf5 {[%clk 0:02:52.2]} 18.
Bxd5 {[%clk 0:02:44.7]} 18... Rad8 {[%clk 0:02:47.5]} 19. c4 {[%clk 0:02:41.9]}
19... Nb4 {[%clk 0:02:42.7]} 20. Qf3 {[%clk 0:02:36.5]} 20... Bg4 {[%clk
0:02:37.2]} 21. Qb3 {[%clk 0:02:36.6]} 21... Nbxd5 {[%clk 0:02:29.2]} 22. cxd5
{[%clk 0:02:37]} 22... Nxd5 {[%clk 0:02:17.5]} 23. Qxb7 {[%clk 0:02:30.8]} 23...
Be6 {[%clk 0:01:29.1]} 24. Rac1 {[%clk 0:02:17.6]} 24... Ba5 {[%clk 0:01:19.5]}
25. Re5 {[%clk 0:02:04.1]} 25... Rb8 {[%clk 0:01:04.1]} 26. Qa6 {[%clk
0:02:00.2]} 26... Bd2 {[%clk 0:01:03.3]} 27. Rd1 {[%clk 0:01:57.3]} 27... Nb4
{[%clk 0:01:02.5]} 28. Qe2 {[%clk 0:01:51]} 28... Bh6 {[%clk 0:01:01.4]} 29.
Rxe6 {[%clk 0:01:39.4]} 29... fxe6 {[%clk 0:00:59.3]} 30. a3 {[%clk 0:01:39.1]}
30... Kh8 {[%clk 0:00:32.2]} 31. axb4 {[%clk 0:01:37.8]} 31... Rxb4 {[%clk
0:00:32.9]} 32. Rd6 {[%clk 0:01:32.2]} 32... g6 {[%clk 0:00:26.2]} 33. Rxe6
{[%clk 0:01:03.9]} 33... Rbb8 {[%clk 0:00:21.7]} 34. Re7 {[%clk 0:00:59.6]}
34... Bg7 {[%clk 0:00:21]} 35. f4 {[%clk 0:00:25.7]} 35... Rxb2 {[%clk
0:00:20.9]} 36. Qe4 {[%clk 0:00:26.9]} 36... Rbb8 {[%clk 0:00:18.4]} 37. Kg2
{[%clk 0:00:25.3]} 37... Bf6 {[%clk 0:00:18.7]} 38. Re6 {[%clk 0:00:23.3]} 38...
Bg7 {[%clk 0:00:18.3]} 39. h4 {[%clk 0:00:23.9]} 39... Rbd8 {[%clk 0:00:08.4]}
40. Kh3 {[%clk 0:00:24]} 40... Kg8 {[%clk 0:00:08.5]} 41. Re7 {[%clk 0:00:23.3]}
41... Kh8 {[%clk 0:00:07]} 42. Kg4 {[%clk 0:00:21.4]} 42... Rg8 {[%clk
0:00:07.7]} 43. Qe6 {[%clk 0:00:21.4]} 43... Rdf8 {[%clk 0:00:07.2]} 44. Rf7
{[%clk 0:00:20.3]} 44... Re8 {[%clk 0:00:05.8]} 45. Qd5 {[%clk 0:00:19.8]} 45...
h5+ {[%clk 0:00:07]} 46. Kh3 {[%clk 0:00:20.5]} 46... Kh7 {[%clk 0:00:08.4]} 47.
f5 {[%clk 0:00:21.7]} 47... Re5 {[%clk 0:00:08.1]} 48. Qxe5 {[%clk 0:00:21.5]}
1-0

[Event "*** Titled Tuesday Blitz"]
[Site "Chess.com"]
[Date "2018.04.03"]
[Round "4"]
[White "djano"]
[Black "GMHess"]
[Result "0-1"]
[WhiteElo "2426"]
[BlackElo "2512"]
[TimeControl "180+2"]
[EndTime "13:52:07 PDT"]
[Termination "GMHess won on time"]

1. d4 {[%clk 0:03:01.9]} 1... g6 {[%clk 0:03:00.2]} 2. e4 {[%clk 0:03:01.7]}
2... d6 {[%clk 0:03:01.5]} 3. Nc3 {[%clk 0:03:02.3]} 3... c6 {[%clk 0:03:03]} 4.
Bg5 {[%clk 0:03:02.1]} 4... b5 {[%clk 0:03:02.7]} 5. Qd2 {[%clk 0:03:01.6]} 5...
h6 {[%clk 0:03:02.9]} 6. Bh4 {[%clk 0:03:02]} 6... Bg7 {[%clk 0:03:04.1]} 7. f4
{[%clk 0:03:01.6]} 7... Nf6 {[%clk 0:03:03.9]} 8. e5 {[%clk 0:03:00.6]} 8...
dxe5 {[%clk 0:03:00.2]} 9. fxe5 {[%clk 0:02:59.7]} 9... Nd5 {[%clk 0:03:01]} 10.
Nf3 {[%clk 0:02:52.8]} 10... g5 {[%clk 0:02:56.5]} 11. Bg3 {[%clk 0:02:51]}
11... Nxc3 {[%clk 0:02:52.9]} 12. bxc3 {[%clk 0:02:48.7]} 12... Be6 {[%clk
0:02:54.3]} 13. Bd3 {[%clk 0:02:46.9]} 13... Bd5 {[%clk 0:02:50]} 14. O-O {[%clk
0:02:45]} 14... Nd7 {[%clk 0:02:48.4]} 15. a4 {[%clk 0:02:43.9]} 15... a6 {[%clk
0:02:48.8]} 16. Kh1 {[%clk 0:02:13.1]} 16... Nb6 {[%clk 0:02:37.8]} 17. axb5
{[%clk 0:02:11.3]} 17... cxb5 {[%clk 0:02:32.4]} 18. Rxa6 {[%clk 0:02:03.9]}
18... Nc4 {[%clk 0:02:29.5]} 19. Rxa8 {[%clk 0:01:36.6]} 19... Qxa8 {[%clk
0:02:31.4]} 20. Qf2 {[%clk 0:01:36.2]} 20... O-O {[%clk 0:02:29.7]} 21. Ne1
{[%clk 0:01:10]} 21... f5 {[%clk 0:02:14.1]} 22. exf6 {[%clk 0:00:56]} 22...
Rxf6 {[%clk 0:02:14.9]} 23. Qe2 {[%clk 0:00:57.2]} 23... Rxf1+ {[%clk
0:02:05.8]} 24. Qxf1 {[%clk 0:00:59.1]} 24... Qa1 {[%clk 0:02:05.1]} 25. Qf5
{[%clk 0:00:55.7]} 25... e6 {[%clk 0:01:49.7]} 26. Qg6 {[%clk 0:00:40.2]} 26...
Kf8 {[%clk 0:01:08.3]} 27. h4 {[%clk 0:00:37.4]} 27... gxh4 {[%clk 0:00:43.9]}
28. Bxh4 {[%clk 0:00:39.3]} 28... Qxc3 {[%clk 0:00:42]} 29. Nf3 {[%clk
0:00:21.2]} 29... Qa1+ {[%clk 0:00:35.6]} 30. Kh2 {[%clk 0:00:20]} 30... Bxf3
{[%clk 0:00:37]} 31. gxf3 {[%clk 0:00:21.4]} 31... Qxd4 {[%clk 0:00:37.4]} 32.
Bg3 {[%clk 0:00:17.9]} 32... Be5 {[%clk 0:00:17.5]} 33. Qxh6+ {[%clk 0:00:17.7]}
33... Ke7 {[%clk 0:00:19]} 34. f4 {[%clk 0:00:19]} 34... Bf6 {[%clk 0:00:15.4]}
35. Qh7+ {[%clk 0:00:19.7]} 35... Kd6 {[%clk 0:00:16.8]} 36. Qg8 {[%clk
0:00:17]} 36... Kd7 {[%clk 0:00:09.1]} 37. Qa8 {[%clk 0:00:16.5]} 37... Nd6
{[%clk 0:00:07.5]} 38. Qg8 {[%clk 0:00:13.3]} 38... Qc5 {[%clk 0:00:05.5]} 39.
Qh7+ {[%clk 0:00:12.9]} 39... Kc6 {[%clk 0:00:05.7]} 40. Qg8 {[%clk 0:00:12.6]}
40... Qh5+ {[%clk 0:00:06.5]} 41. Kg1 {[%clk 0:00:12.6]} 41... Qd5 {[%clk
0:00:08.2]} 42. Qa8+ {[%clk 0:00:12.5]} 42... Kd7 {[%clk 0:00:04.7]} 43. Qa7+
{[%clk 0:00:11.8]} 43... Nb7 {[%clk 0:00:04.7]} 44. Qb6 {[%clk 0:00:10.3]} 44...
Bd4+ {[%clk 0:00:05.5]} 0-1

[Event "*** Titled Tuesday Blitz"]
[Site "Chess.com"]
[Date "2018.04.03"]
[Round "4"]
[White "igorkovalenko"]
[Black "Zkid"]
[Result "1/2-1/2"]
[WhiteElo "2701"]
[BlackElo "2654"]
[TimeControl "180+2"]
[EndTime "13:52:09 PDT"]
[Termination "Game drawn - insufficient material"]

1. d4 {[%clk 0:03:01.9]} 1... d5 {[%clk 0:02:59.9]} 2. Nf3 {[%clk 0:03:03.8]}
2... Nf6 {[%clk 0:03:00.7]} 3. c4 {[%clk 0:03:04.4]} 3... dxc4 {[%clk
0:03:01.9]} 4. e3 {[%clk 0:03:05.2]} 4... e6 {[%clk 0:03:01.7]} 5. Bxc4 {[%clk
0:03:06.6]} 5... c5 {[%clk 0:03:02.9]} 6. O-O {[%clk 0:03:06.4]} 6... Nc6 {[%clk
0:03:04.1]} 7. Nc3 {[%clk 0:03:06.8]} 7... a6 {[%clk 0:03:04.8]} 8. a4 {[%clk
0:03:02]} 8... Qc7 {[%clk 0:03:04.1]} 9. Qe2 {[%clk 0:02:58]} 9... Be7 {[%clk
0:03:04.1]} 10. Rd1 {[%clk 0:02:57.8]} 10... O-O {[%clk 0:03:04]} 11. h3 {[%clk
0:02:14.5]} 11... Rd8 {[%clk 0:02:41.5]} 12. d5 {[%clk 0:01:55.5]} 12... exd5
{[%clk 0:02:41.9]} 13. Bxd5 {[%clk 0:01:49.3]} 13... Nb4 {[%clk 0:02:17.3]} 14.
Bc4 {[%clk 0:01:46.4]} 14... Rxd1+ {[%clk 0:02:14.7]} 15. Qxd1 {[%clk
0:01:48.3]} 15... Bf5 {[%clk 0:02:11.2]} 16. Qe2 {[%clk 0:01:43.8]} 16... Rd8
{[%clk 0:02:08]} 17. e4 {[%clk 0:01:39.6]} 17... Bg6 {[%clk 0:01:38.5]} 18. Bg5
{[%clk 0:01:39.9]} 18... h6 {[%clk 0:01:34.6]} 19. Bh4 {[%clk 0:01:40.1]} 19...
Ne8 {[%clk 0:01:25.9]} 20. Bg3 {[%clk 0:01:30.6]} 20... Nd6 {[%clk 0:01:14]} 21.
Ne5 {[%clk 0:01:09.9]} 21... Nxc4 {[%clk 0:00:54]} 22. Nxg6 {[%clk 0:01:04.9]}
22... Nd6 {[%clk 0:00:52.4]} 23. Nxe7+ {[%clk 0:00:58.3]} 23... Qxe7 {[%clk
0:00:54.3]} 24. Rd1 {[%clk 0:00:55.5]} 24... Ne8 {[%clk 0:00:51.3]} 25. Rxd8
{[%clk 0:00:46.7]} 25... Qxd8 {[%clk 0:00:53.2]} 26. Qc4 {[%clk 0:00:48.1]}
26... Qd4 {[%clk 0:00:47.1]} 27. Qxd4 {[%clk 0:00:42.1]} 27... cxd4 {[%clk
0:00:49]} 28. Nb1 {[%clk 0:00:42.9]} 28... Nf6 {[%clk 0:00:38.5]} 29. f3 {[%clk
0:00:43.5]} 29... Nd7 {[%clk 0:00:39.6]} 30. Nd2 {[%clk 0:00:26.7]} 30... Nd3
{[%clk 0:00:37.9]} 31. b3 {[%clk 0:00:27.7]} 31... g6 {[%clk 0:00:37.1]} 32. Kf1
{[%clk 0:00:27.9]} 32... N7c5 {[%clk 0:00:32.9]} 33. Bd6 {[%clk 0:00:28.5]}
33... f5 {[%clk 0:00:30.9]} 34. exf5 {[%clk 0:00:28.4]} 34... gxf5 {[%clk
0:00:32.8]} 35. a5 {[%clk 0:00:24.1]} 35... Kf7 {[%clk 0:00:30.8]} 36. b4 {[%clk
0:00:16.6]} 36... Nd7 {[%clk 0:00:27.9]} 37. Ke2 {[%clk 0:00:18]} 37... Nb2
{[%clk 0:00:21.6]} 38. Nb3 {[%clk 0:00:18.5]} 38... d3+ {[%clk 0:00:22.7]} 39.
Ke1 {[%clk 0:00:17.9]} 39... Nc4 {[%clk 0:00:20.8]} 40. Bf4 {[%clk 0:00:18.7]}
40... h5 {[%clk 0:00:21.4]} 41. Nd4 {[%clk 0:00:19.4]} 41... Kf6 {[%clk
0:00:20.7]} 42. Kd1 {[%clk 0:00:20.7]} 42... Nde5 {[%clk 0:00:21.3]} 43. Nb3
{[%clk 0:00:21.4]} 43... Nc6 {[%clk 0:00:18.8]} 44. Nc5 {[%clk 0:00:22.2]} 44...
Nxb4 {[%clk 0:00:20]} 45. Nxb7 {[%clk 0:00:23.7]} 45... Ke6 {[%clk 0:00:21.2]}
46. g4 {[%clk 0:00:22.1]} 46... hxg4 {[%clk 0:00:21.9]} 47. fxg4 {[%clk
0:00:24]} 47... fxg4 {[%clk 0:00:23.4]} 48. hxg4 {[%clk 0:00:25.9]} 48... Nd5
{[%clk 0:00:24.9]} 49. Bd2 {[%clk 0:00:26.3]} 49... Nde3+ {[%clk 0:00:19]} 50.
Bxe3 {[%clk 0:00:27.1]} 50... Nxe3+ {[%clk 0:00:20.9]} 51. Kd2 {[%clk
0:00:28.6]} 51... Nxg4 {[%clk 0:00:21.5]} 52. Nc5+ {[%clk 0:00:30]} 52... Kd5
{[%clk 0:00:22.7]} 53. Nxa6 {[%clk 0:00:31.9]} 53... Ne5 {[%clk 0:00:22.7]} 54.
Nb4+ {[%clk 0:00:31.9]} 54... Kc5 {[%clk 0:00:24]} 55. Nxd3+ {[%clk 0:00:32.4]}
55... Nxd3 {[%clk 0:00:25.9]} 56. Kxd3 {[%clk 0:00:34.3]} 56... Kb5 {[%clk
0:00:27.1]} 57. a6 {[%clk 0:00:35.4]} 57... Kxa6 {[%clk 0:00:28.3]} 1/2-1/2

[Event "*** Titled Tuesday Blitz"]
[Site "Chess.com"]
[Date "2018.04.03"]
[Round "4"]
[White "Fighterman91"]
[Black "RojonR"]
[Result "1-0"]
[WhiteElo "2563"]
[BlackElo "2388"]
[TimeControl "180+2"]
[EndTime "13:52:14 PDT"]
[Termination "Fighterman91 won by resignation"]

1. e4 {[%clk 0:03:01.9]} 1... c5 {[%clk 0:02:58.8]} 2. Nf3 {[%clk 0:03:02.6]}
2... Nc6 {[%clk 0:02:59.9]} 3. Bb5 {[%clk 0:03:02.9]} 3... e6 {[%clk 0:03:00.6]}
4. Bxc6 {[%clk 0:03:03.5]} 4... bxc6 {[%clk 0:03:01.7]} 5. Qe2 {[%clk
0:03:04.6]} 5... Ne7 {[%clk 0:03:02.5]} 6. d3 {[%clk 0:03:03.7]} 6... Ng6 {[%clk
0:03:03.3]} 7. h4 {[%clk 0:03:03.9]} 7... h5 {[%clk 0:03:04.5]} 8. e5 {[%clk
0:03:01.7]} 8... f6 {[%clk 0:03:05.6]} 9. Qe4 {[%clk 0:02:54.5]} 9... Kf7 {[%clk
0:03:06.1]} 10. Na3 {[%clk 0:02:51.6]} 10... d5 {[%clk 0:03:06.9]} 11. exd6
{[%clk 0:02:51.9]} 11... Qxd6 {[%clk 0:03:07.8]} 12. Nc4 {[%clk 0:02:52.1]}
12... Qd5 {[%clk 0:03:09.1]} 13. Bd2 {[%clk 0:02:30.8]} 13... Ba6 {[%clk
0:03:02.4]} 14. b3 {[%clk 0:01:58.3]} 14... Qxe4+ {[%clk 0:02:56.1]} 15. dxe4
{[%clk 0:01:58.2]} 15... Bxc4 {[%clk 0:02:56.9]} 16. bxc4 {[%clk 0:01:57.3]}
16... Bd6 {[%clk 0:02:54.8]} 17. Bc3 {[%clk 0:01:54.9]} 17... e5 {[%clk
0:02:36]} 18. g3 {[%clk 0:01:47.1]} 18... Nf8 {[%clk 0:02:34.6]} 19. Rb1 {[%clk
0:01:38.2]} 19... Rb8 {[%clk 0:02:31.1]} 20. Rxb8 {[%clk 0:01:37.8]} 20... Bxb8
{[%clk 0:02:31.8]} 21. Ke2 {[%clk 0:01:34.3]} 21... Ne6 {[%clk 0:02:22.4]} 22.
Rb1 {[%clk 0:01:35.1]} 22... Rc8 {[%clk 0:01:42.8]} 23. Rb7+ {[%clk 0:01:35.6]}
23... Kf8 {[%clk 0:01:37.5]} 24. Ba5 {[%clk 0:01:20.2]} 24... Ke8 {[%clk
0:01:08]} 25. Ne1 {[%clk 0:01:10.4]} 25... Bd6 {[%clk 0:00:41.5]} 26. Rxa7
{[%clk 0:00:59.4]} 26... Rb8 {[%clk 0:00:42]} 27. Bc3 {[%clk 0:00:54.2]} 27...
Be7 {[%clk 0:00:24.6]} 28. Nd3 {[%clk 0:00:53.3]} 28... Rb1 {[%clk 0:00:23.7]}
29. a4 {[%clk 0:00:34.6]} 29... Nd4+ {[%clk 0:00:14.1]} 30. Bxd4 {[%clk
0:00:35]} 30... cxd4 {[%clk 0:00:15.7]} 31. a5 {[%clk 0:00:29.1]} 31... Ra1
{[%clk 0:00:16.9]} 32. a6 {[%clk 0:00:27.8]} 32... Ra2 {[%clk 0:00:18.1]} 33.
Kd1 {[%clk 0:00:25.1]} 33... Ra1+ {[%clk 0:00:18.8]} 34. Kd2 {[%clk 0:00:26.5]}
34... Ra5 {[%clk 0:00:13.9]} 35. c5 {[%clk 0:00:19.7]} 35... Ra4 {[%clk
0:00:11.1]} 36. Kc1 {[%clk 0:00:18.5]} 36... g5 {[%clk 0:00:09]} 37. hxg5 {[%clk
0:00:16.7]} 37... fxg5 {[%clk 0:00:09.8]} 38. Nxe5 {[%clk 0:00:16.3]} 38... Bxc5
{[%clk 0:00:10.5]} 39. Ra8+ {[%clk 0:00:17.5]} 39... Ke7 {[%clk 0:00:07.8]} 40.
Nxc6+ {[%clk 0:00:13.8]} 40... Kd6 {[%clk 0:00:08]} 41. Nd8 {[%clk 0:00:14.4]}
41... Bb4 {[%clk 0:00:08.2]} 42. Nf7+ {[%clk 0:00:13.3]} 42... Ke7 {[%clk
0:00:08.7]} 43. Nxg5 {[%clk 0:00:12.4]} 43... Bc3 {[%clk 0:00:08.6]} 44. Kd1
{[%clk 0:00:13.6]} 44... Ra1+ {[%clk 0:00:09.3]} 45. Ke2 {[%clk 0:00:14.9]}
45... Re1+ {[%clk 0:00:09.1]} 46. Kd3 {[%clk 0:00:14]} 46... Rd1+ {[%clk
0:00:10.2]} 47. Kc4 {[%clk 0:00:15.5]} 47... Rd2 {[%clk 0:00:11.6]} 48. a7
{[%clk 0:00:16.9]} 48... Rxc2 {[%clk 0:00:12.3]} 49. Re8+ {[%clk 0:00:17.7]} 1-0

[Event "*** Titled Tuesday Blitz"]
[Site "Chess.com"]
[Date "2018.04.03"]
[Round "4"]
[White "Jbd735"]
[Black "PrinceMurad09"]
[Result "1-0"]
[WhiteElo "2228"]
[BlackElo "2309"]
[TimeControl "180+2"]
[EndTime "13:52:14 PDT"]
[Termination "Jbd735 won by resignation"]

1. e4 {[%clk 0:03:01.9]} 1... c5 {[%clk 0:03:00.9]} 2. Nf3 {[%clk 0:03:02.7]}
2... d6 {[%clk 0:03:02]} 3. d4 {[%clk 0:03:03.6]} 3... cxd4 {[%clk 0:03:03.2]}
4. Nxd4 {[%clk 0:03:05.5]} 4... Nf6 {[%clk 0:03:04.6]} 5. Nc3 {[%clk 0:03:06.7]}
5... g6 {[%clk 0:03:06]} 6. Be3 {[%clk 0:02:59.8]} 6... Bg7 {[%clk 0:03:07]} 7.
f3 {[%clk 0:02:59.7]} 7... Nc6 {[%clk 0:03:08.4]} 8. Qd2 {[%clk 0:02:59.3]} 8...
O-O {[%clk 0:03:09.5]} 9. Bc4 {[%clk 0:03:00]} 9... Bd7 {[%clk 0:03:10.4]} 10.
O-O-O {[%clk 0:03:00.5]} 10... Rc8 {[%clk 0:03:12]} 11. Bb3 {[%clk 0:03:01.7]}
11... Nxd4 {[%clk 0:03:13.6]} 12. Bxd4 {[%clk 0:03:01.6]} 12... b5 {[%clk
0:03:15.2]} 13. Nd5 {[%clk 0:02:55.8]} 13... Nxd5 {[%clk 0:03:15.2]} 14. Bxd5
{[%clk 0:02:49.6]} 14... Bxd4 {[%clk 0:03:14.3]} 15. Qxd4 {[%clk 0:02:50]} 15...
a5 {[%clk 0:03:16.2]} 16. a3 {[%clk 0:02:40.2]} 16... Rc5 {[%clk 0:03:12.9]} 17.
h4 {[%clk 0:02:37.8]} 17... Qc7 {[%clk 0:03:13.3]} 18. Rd2 {[%clk 0:02:35.6]}
18... b4 {[%clk 0:03:13.7]} 19. h5 {[%clk 0:02:20.8]} 19... e6 {[%clk
0:02:39.9]} 20. hxg6 {[%clk 0:02:20.5]} 20... fxg6 {[%clk 0:02:40.1]} 21. Bb3
{[%clk 0:02:02.7]} 21... bxa3 {[%clk 0:02:24.4]} 22. Qxd6 {[%clk 0:01:55.7]}
22... axb2+ {[%clk 0:02:16.8]} 23. Kxb2 {[%clk 0:01:47.8]} 23... Rb8 {[%clk
0:02:03.1]} 24. Qxc7 {[%clk 0:01:22.2]} 24... Rxc7 {[%clk 0:02:02.7]} 25. Ka3
{[%clk 0:01:07.4]} 25... Kg7 {[%clk 0:01:47.9]} 26. Rhd1 {[%clk 0:01:04.2]}
26... Rbb7 {[%clk 0:01:41.2]} 27. c4 {[%clk 0:00:30.4]} 27... Kf6 {[%clk
0:01:33]} 28. c5 {[%clk 0:00:30.9]} 28... a4 {[%clk 0:01:32.6]} 29. Ba2 {[%clk
0:00:29.3]} 29... Bc8 {[%clk 0:01:27.2]} 30. Rc1 {[%clk 0:00:26.3]} 30... Bd7
{[%clk 0:01:25.6]} 31. Rd6 {[%clk 0:00:24.5]} 31... Rc6 {[%clk 0:01:26.2]} 32.
Rxc6 {[%clk 0:00:21.1]} 32... Bxc6 {[%clk 0:01:28.1]} 33. Rd1 {[%clk 0:00:21.8]}
33... Rd7 {[%clk 0:01:14.3]} 34. Rxd7 {[%clk 0:00:18.6]} 34... Bxd7 {[%clk
0:01:16.2]} 35. f4 {[%clk 0:00:18.3]} 35... g5 {[%clk 0:01:13.5]} 36. g3 {[%clk
0:00:17.5]} 36... gxf4 {[%clk 0:01:12.2]} 37. gxf4 {[%clk 0:00:19.3]} 37... e5
{[%clk 0:01:13.7]} 38. fxe5+ {[%clk 0:00:15.1]} 38... Kxe5 {[%clk 0:01:15.6]}
39. Bd5 {[%clk 0:00:16.1]} 39... h5 {[%clk 0:00:55.4]} 40. c6 {[%clk 0:00:16.3]}
40... Bc8 {[%clk 0:00:45.9]} 41. Kxa4 {[%clk 0:00:16]} 41... h4 {[%clk
0:00:44.7]} 42. Bc4 {[%clk 0:00:17.1]} 42... h3 {[%clk 0:00:44.3]} 43. Bf1
{[%clk 0:00:17.9]} 43... h2 {[%clk 0:00:45.1]} 44. Bg2 {[%clk 0:00:19.3]} 44...
Ba6 {[%clk 0:00:17.7]} 45. Ka5 {[%clk 0:00:19.5]} 45... Be2 {[%clk 0:00:18.7]}
46. c7 {[%clk 0:00:19.3]} 46... Bg4 {[%clk 0:00:19.3]} 47. Kb6 {[%clk
0:00:19.5]} 47... Kf4 {[%clk 0:00:20.2]} 48. Bh1 {[%clk 0:00:17.8]} 48... Kg3
{[%clk 0:00:21.1]} 49. e5 {[%clk 0:00:17.3]} 49... Bf3 {[%clk 0:00:22.3]} 50.
c8=Q {[%clk 0:00:17.6]} 50... Bxh1 {[%clk 0:00:23.5]} 51. Qg8+ {[%clk
0:00:16.6]} 51... Kf2 {[%clk 0:00:24.5]} 52. Qh7 {[%clk 0:00:15.5]} 52... Kg1
{[%clk 0:00:25.5]} 53. Qb1+ {[%clk 0:00:13.3]} 53... Kg2 {[%clk 0:00:26.8]} 54.
e6 {[%clk 0:00:13.6]} 1-0